Workbook

Sheet минвата
B1: ПРОИЗВОДСТВЕННАЯ ПРОГРАММА 2022-2028
O2: - Начало СМР
O3: - СМР
O4: - Производство панелей
O5: - Ввод объекта в эксплуатацию
N6: ДДУ | O6: - Передача ключей по ДДУ
B7: ПОТРЕБНОСТЬ МИНВАТЫ 2023
A8: № п/п | B8: № п/п | C8: Код по 1C | D8: Наименование объектов | E8: Общая площадь здания, м2 | F8: Объем минваты м3 | G8: 2023
G9: янв | H9: фев | I9: мар | J9: апр | K9: май | L9: июн | M9: июл | N9: авг | O9: сен | P9: окт | Q9: ноя | R9: дек
A10: 1 | B10: 1 | C10: 2 | D10: 2 | F10: 32 | G10: 68 | H10: 69 | I10: 70 | J10: 71 | K10: 72 | L10: 73 | M10: 74 | N10: 75 | O10: 76 | P10: 77 | Q10: 78 | R10: 79
A11: 1 | B11: 1 | C11: СГ00.00.0.00.0 | D11: ЖК "Солнечный город" | E11: =E12+E14+E16 -> 24,507 | G11: =SUM(G12,G14,G16) -> 0 | H11: 0 | I11: 0 | J11: 0 | K11: 0 | L11: 0 | M11: 0 | N11: 0 | O11: 0 | P11: 0 | Q11: 0 | R11: 0
A12: 2 | B12: 1.1 | C12: СГ00.16.0.00.0 | D12: ЖК "Солнечный город Супер" ПК-15,16 | E12: =E13 -> 16,499 | G12: =SUM(G13:G13) -> 0 | H12: 0 | I12: 0 | J12: 0 | K12: 0 | L12: 0 | M12: 0 | N12: 0 | O12: 0 | P12: 0 | Q12: 0 | R12: 0
A13: 7 | B13: 1.1.1 | C13: СГ00.16.3.01.0 | D13: ЖК Солнечный город Супер" ПК-15,16 паркинг на 506 м/м | E13: 16,499
A14: 8 | B14: 1.2 | C14: СГ00.14.0.00.0 | D14: ЖК "Солнечный город" ПК-14 | E14: =E15 -> 8,009 | F14: Проект дорабатывается, Получаем РНС, Не принято решение о старте СМР | G14: =SUM(G15:G15) -> 0 | H14: 0 | I14: 0 | J14: 0 | K14: 0 | L14: 0 | M14: 0 | N14: 0 | O14: 0 | P14: 0 | Q14: 0 | R14: 0
A15: 9 | B15: 1.2.1 | C15: СГ00.14.1.14.0 | D15: ЖК "Солнечный город" ПК-14 ж/д 14 | E15: 8,009
A16: 10 | B16: 1.3 | C16: СГ00.09.0.00.0 | D16: Жилой комплекс "Солнечный город" ПК-9 | E16: =E17 -> 0 | G16: =SUM(G17:G17) -> 0 | H16: 0 | I16: 0 | J16: 0 | K16: 0 | L16: 0 | M16: 0 | N16: 0 | O16: 0 | P16: 0 | Q16: 0 | R16: 0
A17: 11 | B17: 1.3.1 | C17: СГ00.09.2.00.0 | D17: Жилой комплекс "Солнечный город" ПК-9 Адм здание 17-3
A18: 12 | B18: 2 | C18: СД00.00.0.00.0 | D18: ЖК "Светлая долина" | E18: =SUM(,E19,E25,E30,E35,E37) -> 259,688
A19: 17 | B19: 2.1 | C19: СД00.17.0.00.0 | D19: ЖК "Светлая Долина" ПК-17 | E19: =SUM(E20,E21,E22,E23,E24) -> 92,861
A20: 18 | B20: 2.1.1 | C20: СД00.17.1.17.1 | D20: ЖК "Светлая Долина" ПК-17 ж/д 17-1 | E20: 8,525
A21: 20 | B21: 2.1.3 | C21: СД00.17.1.17.2 | D21: ЖК "Светлая Долина" ПК-17 ж/д 17-2 | E21: 25,270
A22: 21 | B22: 2.1.4 | C22: СД00.17.1.17.3 | D22: ЖК "Светлая Долина" ПК-17 ж/д 17-3 | E22: 8,525
A23: 23 | B23: 2.1.6 | C23: СД00.17.1.17.4 | D23: ЖК "Светлая Долина" ПК-17 ж/д 17-4 | E23: 25,270
A24: 24 | B24: 2.1.7 | C24: СД00.17.1.17.5 | D24: ЖК "Светлая Долина" ПК-17 ж/д 17-5 | E24: 25,270
A25: 25 | B25: 2.2 | C25: СД00.02.0.00.0 | D25: ЖК "Светлая Долина" ПК-2 | E25: =SUM(E26:E29) -> 68,362
A26: 26 | B26: 2.2.1 | C26: СД00.02.1.02.1 | D26: ЖК "Светлая Долина" ПК-2 ж/д 2-1 | E26: 30,509
A27: 27 | B27: 2.2.2 | C27: СД00.02.1.02.2 | D27: ЖК "Светлая Долина" ПК-2 ж/д 2-2 | E27: 10,350
A28: 28 | B28: 2.2.3 | C28: СД00.02.1.02.3 | D28: ЖК "Светлая Долина" ПК-2 ж/д 2-3 | E28: 17,140
A29: 29 | B29: 2.2.4 | C29: СД00.02.1.02.4 | D29: ЖК "Светлая Долина" ПК-2 ж/д 2-4 | E29: 10,363
A30: 30 | B30: 2.3 | C30: СД00.03.0.00.0 | D30: ЖК "Светлая Долина" ПК-3 | E30: =SUM(E31:E34) -> 65,472
A31: 31 | B31: 2.3.1 | C31: СД00.03.1.03.1 | D31: ЖК "Светлая Долина" ПК-3 ж/д 3-1 | E31: 30,509 | F31: 157.699
A32: 32 | B32: 2.3.2 | C32: СД00.03.1.03.2 | D32: ЖК "Светлая Долина" ПК-3 ж/д 3-2 | E32: 7,460
A33: 34 | B33: 2.3.4 | C33: СД00.03.1.03.3 | D33: ЖК "Светлая Долина" ПК-3 ж/д 3-3 | E33: 17,140
A34: 36 | B34: 2.3.6 | C34: СД00.03.1.03.4 | D34: ЖК "Светлая Долина" ПК-3 ж/д 3-4 | E34: 10,363
A35: 38 | B35: 2.4 | C35: СД00.03.0.00.0 | D35: ЖК "Светлая Долина" ПК-4 | E35: =E36 -> 16,637
A36: 39 | B36: 2.4.1 | C36: СД00.04.3.01.0 | D36: ЖК "Светлая Долина" ПК-4 паркинг на 506 м/м | E36: 16,637
A37: 40 | B37: 2.5 | C37: СД00.03.0.00.0 | D37: ЖК "Светлая Долина" ПК-5 | E37: =E38 -> 16,357
A38: 41 | B38: 2.5.1 | C38: СД00.05.3.05.1 | D38: ЖК "Светлая долина" ПК-5 паркинг 5-1 на 506 м/м | E38: 16,357
A39: 43 | B39: 2.5.2 | C39: СД00.05.3.05.2 | D39: ЖК "Светлая долина" ПК-5 паркинг 5-2 на 506 м/м
A40: 49 | B40: 3 | C40: СН00.00.0.00.0 | D40: ЖР "Седьмое небо" | E40: =SUM(E41,E43,E45,E59,E91,E96,E105) -> 267,242
A41: 50 | B41: 3.1 | C41: СН6А.00.0.00.0 | D41: ЖР "Седьмое небо" Микрорайон 6А | E41: =E42 -> 11,145
A42: 51 | B42: 3.1.1 | C42: СН6А.00.1.01.0 | D42: Ж/д по ул.А.Кутуя ж/к «Казань ХХI век» | E42: 11,145
A43: 52 | B43: 3.2 | C43: СН7А.00.0.00.0 | D43: ЖР "Седьмое небо" Микрорайон 7А | E43: =E44 -> 28,122
A44: 53 | B44: 3.2.1 | C44: СН7А.00.1.00.0 | D44: Ж/д по ул.П.Лумумбы | E44: 28,121.541 | F44: =E44*0.005 -> 140.608
A45: 54 | B45: 3.3 | C45: СНМ2.00.0.00.0 | D45: ЖР "Седьмое Небо" ЖК "Мой Ритм" Микрорайон М-2 | E45: =E46+E49+E55+E52 -> 43,677
A46: 55 | B46: 3.3.1 | C46: СНМ2.03.0.00.0 | D46: ЖР "Седьмое Небо" ЖК "Мой Ритм" Микрорайон М-2 ПК-3 | E46: =E47 -> 20,906
A47: 56 | B47: 3.3.1.1 | C47: СНМ2.03.1.03.1 | D47: ЖР "Седьмое Небо" ЖК "Мой Ритм" Микрорайон М-2 ПК-3 ж/д 3-1 | E47: 20,906
A48: 57 | B48: 3.3.1.2 | C48: СНМ2.03.3.02.0 | D48: ЖР "Седьмое Небо" ЖК "Мой Ритм" Микрорайон М-2 ПК-3 паркинг на 300 м/м | E48: 12,877
A49: 59 | B49: 3.3.2 | C49: СНМ2.02.0.00.0 | D49: ЖР "Седьмое Небо" ЖК "Мой Ритм" Микрорайон М-2 ПК-2 | E49: =E50 -> 22,771
A50: 60 | B50: 3.3.2.1 | C50: СНМ2.02.1.02.1 | D50: ЖР "Седьмое Небо" ЖК "Мой Ритм" Микрорайон М-2 ПК-2 ж/д 2-1 | E50: 22,771
A51: 61 | B51: 3.3.2.2 | C51: СНМ2.02.3.02.0 | D51: ЖР "Седьмое Небо" ЖК "Мой Ритм" Микрорайон М-2 ПК-2 паркинг на 300 м/м | E51: 12,877
A52: 63 | B52: 3.3.3 | C52: СНМ2.05.0.00.0 | D52: ЖР "Седьмое Небо" ЖК "Мой Ритм" Микрорайон М-2 ПК-5
A53: 64 | B53: 3.3.3.1 | C53: СНМ2.05.2.00.0 | D53: ЖР "Седьмое Небо" ЖК "Мой Ритм" Микрорайон М-2 ПК-5 торгово-офисное здание | E53: 874.01
A54: 65 | B54: 3.3.3.2 | C54: СНМ2.05.3.04.0 | D54: ЖР "Седьмое Небо" ЖК "Мой Ритм" Микрорайон М-2 ПК-5 паркинг на 300 м/м | E54: 12,863
A55: 66 | B55: 3.3.4 | C55: СНМ2.01.0.00.0 | D55: ЖР "Седьмое Небо" ЖК "Мой Ритм" Микрорайон М-2 ПК-1 | E55: =E56+E57 -> 0
A56: 67 | B56: 3.3.4.1 | C56: СНМ2.01.1.01.1 | D56: ЖР "Седьмое Небо" ЖК "Мой Ритм" Микрорайон М-2 ПК-1 ж/д 1-1
A57: 68 | B57: 3.3.4.2 | C57: СНМ2.01.1.01.2 | D57: ЖР "Седьмое Небо" ЖК "Мой Ритм" Микрорайон М-2 ПК-1 ж/д 1-2
A58: 69 | B58: 3.3.4.3 | C58: СНМ2.01.3.01.3 | D58: ЖР "Седьмое Небо" ЖК "Мой Ритм" Микрорайон М-2 ПК-1 паркинг на 300 м/м
A59: 70 | B59: 3.4 | C59: СНМ1.00.0.00.0 | D59: ЖР "Седьмое Небо" ЖК "Мой ритм" Микрорайон М-1 | E59: =SUM(E60,E63,E66,E69,E73,E77,E81,E85,E87,E89) -> 184,298
A60: 71 | B60: 3.4.1 | C60: СНМ1.01.0.00.0 | D60: ЖР "Седьмое Небо" ЖК "Мой ритм" Микрорайон М-1 ПК-1 | E60: =SUM(E61:E62) -> 84,163
A61: 72 | B61: 3.4.1.1 | C61: СНМ1.01.1.01.1 | D61: ЖР "Седьмое Небо" ЖК "Мой ритм" Микрорайон М-1 ПК-1 ж/д 1-1 | E61: 45,625.48 | F61: =E61*0.005 -> 228.127
A62: 73 | B62: 3.4.1.2 | C62: СНМ1.01.1.01.2 | D62: ЖР "Седьмое Небо" ЖК "Мой ритм" Микрорайон М-1 ПК-1 ж/д 1-2 | E62: 38,537.43 | F62: =E62*0.005 -> 192.687
A63: 74 | B63: 3.4.2 | C63: СНМ1.05.1.00.0 | D63: ЖР "Седьмое Небо" ЖК "Мой ритм" Микрорайон М-1 ПК-5 | E63: =SUM(E64:E65) -> 44,471
A64: 75 | B64: 3.4.2.1 | C64: СНМ1.05.1.05.1 | D64: ЖР "Седьмое Небо" ЖК "Мой ритм" Микрорайон М-1 ПК-5 ж/д 5-1 | E64: 18,337 | F64: =E64*0.005 -> 91.686
A65: 76 | B65: 3.4.2.2 | C65: СНМ1.05.1.05.2 | D65: ЖР "Седьмое Небо" ЖК "Мой ритм" Микрорайон М-1 ПК-5 ж/д 5-2 | E65: =17502.54+8630.85 -> 26,133 | F65: =E65*0.005 -> 130.667
A66: 77 | B66: 3.4.3 | C66: СНМ1.10.1.00.0 | D66: ЖР "Седьмое Небо" ЖК "Мой ритм" Микрорайон М-1 ПК-10 | E66: =SUM(E67:E68) -> 55,665
A67: 78 | B67: 3.4.3.1 | C67: СНМ1.10.1.10.1 | D67: ЖР "Седьмое Небо" ЖК "Мой ритм" Микрорайон М-1 ПК-10 ж/д 10-1 | E67: 26,354 | F67: =E67*0.005 -> 131.769
A68: 79 | B68: 3.4.3.2 | C68: СНМ1.10.1.10.2 | D68: ЖР "Седьмое Небо" ЖК "Мой ритм" Микрорайон М-1 ПК-10 ж/д 10-2 | E68: =18739.6+10571.37 -> 29,311 | F68: =E68*0.005 -> 146.555
A69: 80 | B69: 3.4.4 | C69: СНМ1.03.0.00.0 | D69: ЖР "Седьмое Небо" ЖК "Мой ритм" Микрорайон М-1 ПК-3 | E69: =SUM(E70:E72) -> 0
A70: 81 | B70: 3.4.4.1 | C70: СНМ1.03.1.03.1 | D70: ЖР "Седьмое Небо" ЖК "Мой ритм" Микрорайон М-1 ПК-3 ж/д 3-1 | F70: Проектируем, Получаем РНС, Не принято решение о старте СМР
A71: 82 | B71: 3.4.4.2 | C71: СНМ1.03.1.03.2 | D71: ЖР "Седьмое Небо" ЖК "Мой ритм" Микрорайон М-1 ПК-3 ж/д 3-2
A72: 84 | B72: 3.4.4.3 | C72: СНМ1.03.1.03.3 | D72: ЖР "Седьмое Небо" ЖК "Мой ритм" Микрорайон М-1 ПК-3 ж/д 3-3
A73: 86 | B73: 3.4.5 | C73: СНМ1.11.0.00.0 | D73: ЖР "Седьмое Небо" ЖК "Мой ритм" Микрорайон М-1 ПК-11 | E73: =SUM(E74:E76) -> 0
A74: 87 | B74: 3.4.5.1 | C74: СНМ1.11.1.11.1 | D74: ЖР "Седьмое Небо" ЖК "Мой ритм" Микрорайон М-1 ПК-11 ж/д 11-1 | F74: Проектируем, Получаем РНС, Не принято решение о старте СМР
A75: 88 | B75: 3.4.5.2 | C75: СНМ1.11.1.11.2 | D75: ЖР "Седьмое Небо" ЖК "Мой ритм" Микрорайон М-1 ПК-11 ж/д 11-2
A76: 90 | B76: 3.4.5.3 | C76: СНМ1.11.1.11.3 | D76: ЖР "Седьмое Небо" ЖК "Мой ритм" Микрорайон М-1 ПК-11 ж/д 11-3
A77: 92 | B77: 3.4.6 | C77: СНМ1.12.0.00.0 | D77: ЖР "Седьмое Небо" ЖК "Мой ритм" Микрорайон М-1 ПК-12 | E77: =SUM(E78:E80) -> 0
A78: 93 | B78: 3.4.6.1 | C78: СНМ1.12.1.12.1 | D78: ЖР "Седьмое Небо" ЖК "Мой ритм" Микрорайон М-1 ПК-12 ж/д 12-1 | F78: Проектируем, Получаем РНС, Не принято решение о старте СМР
A79: 94 | B79: 3.4.6.2 | C79: СНМ1.12.1.12.2 | D79: ЖР "Седьмое Небо" ЖК "Мой ритм" Микрорайон М-1 ПК-12 ж/д 12-2
A80: 96 | B80: 3.4.6.3 | C80: СНМ1.12.1.12.3 | D80: ЖР "Седьмое Небо" ЖК "Мой ритм" Микрорайон М-1 ПК-12 ж/д 12-3
A81: 98 | B81: 3.4.7 | C81: СНМ1.13.0.00.0 | D81: ЖР "Седьмое Небо" ЖК "Мой ритм" Микрорайон М-1 ПК-13 | E81: =SUM(E82:E84) -> 0
A82: 99 | B82: 3.4.7.1 | C82: СНМ1.13.1.13.1 | D82: ЖР "Седьмое Небо" ЖК "Мой ритм" Микрорайон М-1 ПК-13 ж/д 13-1 | F82: Проектируем, Получаем РНС, Не принято решение о старте СМР
A83: 100 | B83: 3.4.7.2 | C83: СНМ1.13.1.13.2 | D83: ЖР "Седьмое Небо" ЖК "Мой ритм" Микрорайон М-1 ПК-13 ж/д 13-2
A84: 102 | B84: 3.4.7.3 | C84: СНМ1.13.1.13.3 | D84: ЖР "Седьмое Небо" ЖК "Мой ритм" Микрорайон М-1 ПК-13 ж/д 13-3
A85: 104 | B85: 3.4.8 | C85: СНМ1.04.0.00.0 | D85: ЖР "Седьмое Небо" ЖК "Мой ритм" Микрорайон М-1 ПК-4 | E85: =SUM(E86:E86) -> 0 | F85: Получаем РНС, Не принято решение о старте СМР
A86: 105 | B86: 3.4.8.1 | C86: СНМ1.04.1.04.1 | D86: ЖР "Седьмое Небо" ЖК "Мой ритм" Микрорайон М-1 ПК-4 ж/д 4-1
A87: 107 | B87: 3.4.9 | C87: СНМ1.09.0.00.0 | D87: ЖР "Седьмое Небо" ЖК "Мой ритм" Микрорайон М-1 ПК-9 | E87: =E88 -> 0 | F87: Получаем РНС, Не принято решение о старте СМР
A88: 108 | B88: 3.4.9.1 | C88: СНМ1.09.1.09.1 | D88: ЖР "Седьмое Небо" ЖК "Мой ритм" Микрорайон М-1 ПК-9 ж/д 9-1
A89: 110 | B89: 3.4.10 | C89: СНМ1.14.0.00.0 | D89: ЖР "Седьмое Небо" ЖК "Мой ритм" Микрорайон М-1 ПК-14 | E89: =SUM(E90:E90) -> 0 | F89: Получаем РНС, Не принято решение о старте СМР
A90: 111 | B90: 3.4.10.1 | C90: СНМ1.14.1.14.1 | D90: ЖР "Седьмое Небо" ЖК "Мой ритм" Микрорайон М-1 ПК-14 ж/д 14-1
A91: 113 | B91: 3.5 | C91: СНМ3.00.0.00.0 | D91: ЖР "Седьмое Небо" ЖК "Мой ритм" Микрорайон М-3 | E91: =SUM(E92:E93) -> 0
A92: 114 | B92: 3.5.1 | C92: СНМ3.01.0.00.0 | D92: ЖР "Седьмое Небо" ЖК "Мой ритм" Микрорайон М-3 ПК-1
A93: 115 | B93: 3.5.2 | C93: СНМ3.03.0.00.0 | D93: ЖР "Седьмое Небо" ЖК "Мой ритм" Микрорайон М-3 ПК-3
A94: 117 | B94: 3.5.3 | C94: СНМ3.01.2.01.5 | D94: ЖР "Седьмое Небо" ЖК "Мой ритм" Микрорайон М-3 бизнес-центр
A95: 118 | B95: 3.5.4 | C95: СНМ3.03.3.03.5 | D95: ЖР "Седьмое Небо" ЖК "Мой Ритм" Микрорайон М-3 ПК-3 паркинг на 300 м/м
A96: 119 | B96: 3.6 | C96: СНМ4.00.0.00.0 | D96: ЖР "Седьмое Небо" ЖК "Мой ритм" Микрорайон М-4 | E96: =SUM(E97:E99) -> 0
A97: 120 | B97: 3.6.1 | C97: СНМ4.06.0.00.0 | D97: ЖР "Седьмое Небо" ЖК "Мой ритм" Микрорайон М-4 ПК-6 | F97: СТОИМ
A98: 122 | B98: 3.6.2 | C98: СНМ4.07.0.00.0 | D98: ЖР "Седьмое Небо" ЖК "Мой ритм" Микрорайон М-4 ПК-7
A99: 123 | B99: 3.6.3 | C99: СНМ4.01.2.01.4 | D99: ЖР "Седьмое Небо" ЖК "Мой ритм" Микрорайон М-4 Технопарк
A100: 124 | B100: 3.6.4 | C100: СНМ4.01.3.01.1 | D100: ЖР "Седьмое Небо" ЖК "Мой Ритм" Микрорайон М-4 ПК-1 паркинг 1-1 на 1000 м/м
A101: 126 | B101: 3.6.5 | C101: СНМ4.01.3.01.2 | D101: ЖР "Седьмое Небо" ЖК "Мой Ритм" Микрорайон М-4 ПК-1 паркинг 1-2 на 1000 м/м
A102: 128 | B102: 3.6.6 | C102: СНМ4.01.3.01.3 | D102: ЖР "Седьмое Небо" ЖК "Мой Ритм" Микрорайон М-4 ПК-1 паркинг 1-3 на 1000 м/м
A103: 130 | B103: 3.7 | C103: СНМ4.00.0.00.0 | D103: ЖР "Седьмое Небо" Микрорайон М-5 | E103: =SUM(E104:E107) -> 16,867
A104: 131 | B104: 3.7.1 | C104: СНМ5.00.3.01.0 | D104: ЖР "Седьмое Небо" Микрорайон М-5 паркинг на 499 м/м | E104: 16,867
A105: 132 | B105: 3.8 | C105: СНМ8.00.0.00.0 | D105: ЖР "Седьмое Небо" Микрорайон М-8 | E105: =SUM(E106:E110) -> 0
A106: 133 | B106: 3.8.1 | C106: СНМ8.01.0.00.0 | D106: ЖР "Седьмое небо" Микрорайон М-8 ПК-1 | F106: Работа с концепцией
A107: 134 | B107: 3.8.2 | C107: СНМ8.02.0.00.0 | D107: ЖР "Седьмое небо" Микрорайон М-8 ПК-2
A108: 135 | B108: 3.8.3 | C108: СНМ8.03.0.00.0 | D108: ЖР "Седьмое небо" Микрорайон М-8 ПК-3
A109: 136 | B109: 3.8.4 | C109: СНМ8.04.0.00.0 | D109: ЖР "Седьмое небо" Микрорайон М-8 ПК-4
A110: 137 | B110: 3.8.5 | C110: СНМ8.05.0.00.0 | D110: ЖР "Седьмое небо" Микрорайон М-8 ПК-5
B111: 3.8.6 | C111: СНМ8.06.0.00.0 | D111: ЖР "Седьмое небо" Микрорайон М-8 ПК-6
B112: 3.8.7 | C112: СНМ8.07.0.00.0 | D112: ЖР "Седьмое небо" Микрорайон М-8 ПК-7
B113: 3.8.8 | C113: СНМ8.08.0.00.0 | D113: ЖР "Седьмое небо" Микрорайон М-8 ПК-8
B114: 3.8.9 | C114: СНМ8.09.0.00.0 | D114: ЖР "Седьмое небо" Микрорайон М-8 ПК-9
B115: 3.8.10 | C115: СНМ8.10.0.00.0 | D115: ЖР "Седьмое небо" Микрорайон М-8 ПК-10
B116: 3.8.11 | C116: СНМ8.11.0.00.0 | D116: ЖР "Седьмое небо" Микрорайон М-8 ПК-12
B117: 3.8.12 | C117: СНМ8.12.0.00.0 | D117: ЖР "Седьмое небо" Микрорайон М-8 ПК-11
B118: 3.8.13 | C118: СНМ8.13.0.00.0 | D118: ЖР "Седьмое небо" Микрорайон М-8 ПК-13
B119: 3.8.14 | C119: СНМ8.14.0.00.0 | D119: ЖР "Седьмое небо" Микрорайон М-8 ПК-14
B120: 3.8.15 | C120: СНМ8.15.0.00.0 | D120: ЖР "Седьмое небо" Микрорайон М-8 ПК-15
A121: 138 | B121: 4 | C121: НБ00.00.0.00.0 | D121: ЖК "Нобелевский" | E121: =SUM(E122) -> 13,635
A122: 142 | B122: 4.4 | C122: НБ00.00.3.01.0 | D122: ЖК "Нобелевский" паркинг на 362 м/м | E122: 13,635
A123: 143 | B123: 5 | C123: ИКРП.00.0.00.0 | D123: Исторический квартал по ул.Рахматуллина, Профсоюзная | E123: =SUM(E124:E128) -> 0
A124: 144 | B124: 5.1 | C124: ИКПР.00.1.05.0 | D124: Исторический квартал по ул.Профсоюзная ж/д 5/16
A125: 145 | B125: 5.2 | C125: ИКРХ.00.1.08.0 | D125: Исторический квартал по ул.Рахматуллина ж/д 8/11
A126: 146 | B126: 5.3 | C126: ИКРП.00.1.06.0 | D126: Исторический квартал по ул.Рахматуллина ж/д 6/9
A127: 147 | B127: 5.4 | C127: ИКРХ.00.1.04.0 | D127: Исторический квартал по ул.Рахматуллина ж/д 4/7
A128: 148 | B128: 5.5 | C128: ИКРХ.00.2.07.0 | D128: Исторический квартал по ул.Рахматуллина Административное здание с МУПг
A129: 149 | B129: 6 | C129: АВ00.00.0.00.0 | D129: ЖК на Айвазовского | E129: =SUM(E130:E131) -> 15,026
A130: 150 | B130: 6.1 | C130: АВ00.01.0.00.0 | D130: ЖК на Айвазовского 1 очередь | E130: 15,026 | F130: =751.905/2 -> 375.953
A131: 151 | B131: 6.2 | C131: АВ00.02.0.00.0 | D131: ЖК на Айвазовского 2 очередь
A132: 152 | B132: 7 | D132: Точечные объекты | E132: =SUM(E133:E138) -> 12,755
A133: 153 | B133: 7.1 | C133: ИС00.00.1.00.0 | D133: Ж/д по ул.Г.Исхаки | E133: 6,927
A134: 154 | B134: 7.2 | C134: КЗ00.00.1.01.0 | D134: Ж/д КазаньМедТехника | F134: Проектируем, РНС получаем, Не принято решение о старте СМР
A135: 156 | B135: 7.3 | C135: ГЗ00.00.1.00.0 | D135: ЖК по ул.Газовая | F135: СТОИМ
A136: 157 | B136: 7.4 | C136: КР00.00.0.00.0 | D136: ЖК по ул.Красносельская
A137: 158 | B137: 7.5 | C137: СР00.00.0.00.0 | D137: Здание по ул.Сыртлановой 2 | E137: 2,584
A138: 159 | B138: 7.6 | C138: ШМ00.01.2.35.2 | D138: Административно-офисное здание по ул.Шмидта 35Б | E138: 3,244
A139: 258 | B139: 8 | C139: ККСМ.00.0.00.0 | D139: ЖК ККСМ
B140: 8.1 | C140: ККСМ.01.0.00.0 | D140: ЖК ККСМ 1 очередь
B141: 8.2 | C141: ККСМ.02.0.00.0 | D141: ЖК ККСМ 2 очередь
A142: 160 | B142: 9 | C142: УС00.00.0.00.0 | D142: с.Усады Лаишевского района | E142: =SUM(E143,E185,E190,E192,E194) -> 49,110
A143: 161 | B143: 9.1 | C143: УС52.00.0.00.0 | D143: ЖК "Великий сад" | E143: =SUM(E162,E166,E144,E148,E170,E174,E155,E151,E158,E179,E184) -> 0
A144: 162 | B144: 9.1.1 | C144: УС52.01.0.00.0 | D144: ЖК "Великий сад" ПК-1 | E144: =SUM(E145:E146) -> 0
A145: 163 | B145: 9.1.1.1 | C145: УС52.01.1.01.1 | D145: ЖК "Великий сад" ПК-1 ж/д 1-1 | F145: Проектируем после М-1 ПК-3-13
A146: 165 | B146: 9.1.1.2 | C146: УС52.01.1.01.2 | D146: ЖК "Великий сад" ПК-1 ж/д 1-2
A147: 167 | B147: 9.1.1.3 | C147: УС52.01.1.01.3 | D147: ЖК "Великий сад" ПК-1 ж/д 1-3
A148: 169 | B148: 9.1.2 | C148: УС52.02.0.00.0 | D148: ЖК "Великий сад" ПК-2 | E148: =SUM(E149:E150) -> 0
A149: 170 | B149: 9.1.2.1 | C149: УС52.02.1.02.1 | D149: ЖК "Великий сад" ПК-2 ж/д 2-1 | F149: Получаем РНС, Не принято решение о старте СМР
A150: 172 | B150: 9.1.2.2 | C150: УС52.02.1.02.2 | D150: ЖК "Великий сад" ПК-2 ж/д 2-2
A151: 174 | B151: 9.1.3 | C151: УС52.03.0.00.0 | D151: ЖК "Великий сад" ПК-3 | E151: =SUM(E152:E153) -> 0
A152: 175 | B152: 9.1.3.1 | C152: УС52.03.1.03.1 | D152: ЖК "Великий сад" ПК-3 ж/д 3-1 | F152: Получаем РНС, Не принято решение о старте СМР
A153: 177 | B153: 9.1.3.2 | C153: УС52.03.1.03.2 | D153: ЖК "Великий сад" ПК-3 ж/д 3-2
B154: 9.1.3.3 | C154: УС52.03.1.03.3 | D154: ЖК "Великий сад" ПК-3 ж/д 3-3
A155: 181 | B155: 9.1.4 | C155: УС52.04.0.00.0 | D155: ЖК "Великий сад" ПК-4 | E155: =SUM(E156:E157) -> 0
A156: 182 | B156: 9.1.4.1 | C156: УС52.04.1.04.1 | D156: ЖК "Великий сад" ПК-4 ж/д 4-1 | F156: Получаем РНС, Не принято решение о старте СМР
A157: 184 | B157: 9.1.4.2 | C157: УС52.04.1.04.2 | D157: ЖК "Великий сад" ПК-4 ж/д 4-2
A158: 186 | B158: 9.1.5 | C158: УС52.05.0.00.0 | D158: ЖК "Великий сад" ПК-5 | E158: =SUM(E159:E160) -> 0
A159: 187 | B159: 9.1.5.1 | C159: УС52.05.1.05.1 | D159: ЖК "Великий сад" ПК-5 ж/д 5-1 | F159: Получаем РНС, Не принято решение о старте СМР
A160: 189 | B160: 9.1.5.2 | C160: УС52.05.1.05.2 | D160: ЖК "Великий сад" ПК-5 ж/д 5-2
B161: 9.1.5.3 | C161: УС52.05.1.05.3 | D161: ЖК "Великий сад" ПК-5 ж/д 5-3
A162: 193 | B162: 9.1.6 | C162: УС52.08.0.00.0 | D162: ЖК "Великий сад" ПК-8 | E162: =SUM(E163:E164) -> 0
A163: 194 | B163: 9.1.6.1 | C163: УС52.08.1.08.1 | D163: ЖК "Великий сад" ПК-8 ж/д 8-1 | F163: Получаем РНС, Не принято решение о старте СМР
A164: 196 | B164: 9.1.6.2 | C164: УС52.08.1.08.2 | D164: ЖК "Великий сад" ПК-8 ж/д 8-2
B165: 9.1.6.3 | C165: УС52.08.1.08.3 | D165: ЖК "Великий сад" ПК-8 ж/д 8-3
A166: 198 | B166: 9.1.7 | C166: УС52.09.0.00.0 | D166: ЖК "Великий сад" ПК-9 | E166: =SUM(E167:E168) -> 0
A167: 199 | B167: 9.1.7.1 | C167: УС52.09.1.09.1 | D167: ЖК "Великий сад" ПК-9 ж/д 9-1 | F167: Получаем РНС, Не принято решение о старте СМР
A168: 201 | B168: 9.1.7.2 | C168: УС52.09.1.09.2 | D168: ЖК "Великий сад" ПК-9 ж/д 9-2
B169: 9.1.7.3 | C169: УС52.09.1.09.3 | D169: ЖК "Великий сад" ПК-9 ж/д 9-3
A170: 205 | B170: 9.1.8 | C170: УС52.10.0.00.0 | D170: ЖК "Великий сад" ПК-10 | E170: =SUM(E171:E172) -> 0
A171: 206 | B171: 9.1.8.1 | C171: УС52.10.1.10.1 | D171: ЖК "Великий сад" ПК-10 ж/д 10-1 | F171: Получаем РНС, Не принято решение о старте СМР
A172: 208 | B172: 9.1.8.2 | C172: УС52.10.1.10.2 | D172: ЖК "Великий сад" ПК-10 ж/д 10-2
B173: 9.1.8.3 | C173: УС52.10.1.10.3 | D173: ЖК "Великий сад" ПК-10 ж/д 10-3
A174: 213 | B174: 9.1.9 | C174: УС52.12.0.00.0 | D174: ЖК "Великий сад" ПК-12 | E174: =SUM(E175:E177) -> 0
A175: 214 | B175: 9.1.9.1 | C175: УС52.12.1.12.1 | D175: ЖК "Великий сад" ПК-12 ж/д 12-1 | F175: Получаем РНС, Не принято решение о старте СМР
A176: 216 | B176: 9.1.9.2 | C176: УС52.12.1.12.2 | D176: ЖК "Великий сад" ПК-12 ж/д 12-2
A177: 217 | B177: 9.1.9.3 | C177: УС52.12.1.12.3 | D177: ЖК "Великий сад" ПК-12 ж/д 12-3
B178: 9.1.9.4 | C178: УС52.12.1.12.4 | D178: ЖК "Великий сад" ПК-12 ж/д 12-4
A179: 219 | B179: 9.1.10 | C179: УС52.13.0.00.0 | D179: ЖК "Великий сад" ПК-13
A180: 220 | B180: 9.1.10.1 | C180: УС52.13.1.13.1 | D180: ЖК "Великий сад" ПК-13 ж/д 13-1 | F180: Проектируем после М-1 ПК-3-13
A181: 221 | B181: 9.1.10.2 | C181: УС52.13.1.13.2 | D181: ЖК "Великий сад" ПК-13 ж/д 13-2
A182: 218 | B182: 9.1.10.3 | C182: УС52.13.1.13.3 | D182: ЖК "Великий сад" ПК-13 ж/д 13-3
B183: 9.1.10.4 | C183: УС52.13.1.13.4 | D183: ЖК "Великий сад" ПК-13 ж/д 13-4
A184: 222 | B184: 9.1.11 | C184: УС52.14.0.00.0 | D184: ЖК "Великий сад" 4-я очередь
A185: 227 | B185: 9.2 | C185: УС03.00.0.00.0 | D185: ЖК "Дома у сада" | E185: =E186+E187+E188+E189 -> 49,110
A186: 228 | B186: 9.2.1 | C186: УС03.00.1.01.1 | D186: ЖК "Дома у сада" ж/д 1-1 | E186: 7,657
A187: 229 | B187: 9.2.2 | C187: УС03.00.1.01.2 | D187: ЖК "Дома у сада" ж/д 1-2 | E187: 7,657
A188: 230 | B188: 9.2.3 | C188: УС03.00.1.01.3 | D188: ЖК "Дома у сада" ж/д 1-3 | E188: 8,525
A189: 232 | B189: 9.2.5 | C189: УС03.00.1.01.4 | D189: ЖК "Дома у сада" ж/д 1-4 | E189: 25,270
A190: 233 | B190: 9.3 | C190: УС12.00.0.00.0 | D190: ЖК с.Усады 1,2 га | E190: =E191 -> 0
A191: 234 | B191: 9.3.1 | C191: УС12.00.2.00.0 | D191: ЖК с.Усады 1,2 га (офисное здание)
A192: 235 | B192: 9.4 | C192: УС08.00.0.00.0 | D192: ЖК с.Усады 0,8 га | E192: =E193 -> 0
A193: 236 | B193: 9.4.1 | C193: УС08.00.1.00.0 | D193: ЖК с.Усады 0,8 га (под жилье)
A194: 237 | B194: 9.5 | C194: УС27.00.0.00.0 | D194: ЖК с.Усады 2,7 га | E194: =E195 -> 0
A195: 238 | B195: 9.5.1 | C195: УС27.00.4.00.0 | D195: ЖК с.Усады 2,7 га (под коммуникации)
A196: 239 | B196: 10 | C196: НС00.00.0.00.0 | D196: ЖК "Новый свет" | E196: =SUM(E197,E208:E212) -> 145,732
A197: 240 | B197: 10.1 | C197: НСМ1.00.0.00.0 | D197: ЖК "Новый свет" Микрорайон №1 | E197: =SUM(E198:E207) -> 145,732
A198: 241 | B198: 10.1.1 | C198: НСМ1.01.0.00.0 | D198: ЖК "Новый свет" Микрорайон №1 УБ-1 | E198: 20,164 | F198: Получаем РНС, НЕ СТРОИМ
A199: 242 | B199: 10.1.2 | C199: НСМ1.02.0.00.0 | D199: ЖК "Новый свет" Микрорайон №1 УБ-2 | E199: 15,905
A200: 243 | B200: 10.1.3 | C200: НСМ1.03.0.00.0 | D200: ЖК "Новый свет" Микрорайон №1 УБ-3 | E200: 10,043
... 121 more rows

Sheet гидроизол
B1: ПРОИЗВОДСТВЕННАЯ ПРОГРАММА 2022-2028
O2: - Начало СМР
O3: - СМР
O4: - Производство панелей
O5: - Ввод объекта в эксплуатацию
N6: ДДУ | O6: - Передача ключей по ДДУ
B7: ПОТРЕБНОСТЬ ГИДРОИЗОЛ 2023
A8: № п/п | B8: № п/п | C8: Код по 1C | D8: Наименование объектов | E8: Общая площадь здания, м2 | F8: Объем гидроизол м2 | G8: 2023
G9: янв | H9: фев | I9: мар | J9: апр | K9: май | L9: июн | M9: июл | N9: авг | O9: сен | P9: окт | Q9: ноя | R9: дек
A10: 1 | B10: 1 | C10: 2 | D10: 2 | F10: 32 | G10: 68 | H10: 69 | I10: 70 | J10: 71 | K10: 72 | L10: 73 | M10: 74 | N10: 75 | O10: 76 | P10: 77 | Q10: 78 | R10: 79
A11: 1 | B11: 1 | C11: СГ00.00.0.00.0 | D11: ЖК "Солнечный город" | E11: =E12+E14+E16 -> 24,507 | G11: =SUM(G12,G14,G16) -> 0 | H11: 0 | I11: 0 | J11: 0 | K11: 0 | L11: 0 | M11: 0 | N11: 0 | O11: 0 | P11: 0 | Q11: 0 | R11: 0
A12: 2 | B12: 1.1 | C12: СГ00.16.0.00.0 | D12: ЖК "Солнечный город Супер" ПК-15,16 | E12: =E13 -> 16,499 | G12: =SUM(G13:G13) -> 0 | H12: 0 | I12: 0 | J12: 0 | K12: 0 | L12: 0 | M12: 0 | N12: 0 | O12: 0 | P12: 0 | Q12: 0 | R12: 0
A13: 7 | B13: 1.1.1 | C13: СГ00.16.3.01.0 | D13: ЖК Солнечный город Супер" ПК-15,16 паркинг на 506 м/м | E13: 16,499
A14: 8 | B14: 1.2 | C14: СГ00.14.0.00.0 | D14: ЖК "Солнечный город" ПК-14 | E14: =E15 -> 8,009 | F14: Проект дорабатывается, Получаем РНС, Не принято решение о старте СМР | G14: =SUM(G15:G15) -> 0 | H14: 0 | I14: 0 | J14: 0 | K14: 0 | L14: 0 | M14: 0 | N14: 0 | O14: 0 | P14: 0 | Q14: 0 | R14: 0
A15: 9 | B15: 1.2.1 | C15: СГ00.14.1.14.0 | D15: ЖК "Солнечный город" ПК-14 ж/д 14 | E15: 8,009
A16: 10 | B16: 1.3 | C16: СГ00.09.0.00.0 | D16: Жилой комплекс "Солнечный город" ПК-9 | E16: =E17 -> 0 | G16: =SUM(G17:G17) -> 0 | H16: 0 | I16: 0 | J16: 0 | K16: 0 | L16: 0 | M16: 0 | N16: 0 | O16: 0 | P16: 0 | Q16: 0 | R16: 0
A17: 11 | B17: 1.3.1 | C17: СГ00.09.2.00.0 | D17: Жилой комплекс "Солнечный город" ПК-9 Адм здание 17-3
A18: 12 | B18: 2 | C18: СД00.00.0.00.0 | D18: ЖК "Светлая долина" | E18: =SUM(,E19,E25,E30,E35,E37) -> 259,688 | G18: =SUM(,G19,G25,G30) -> 0 | H18: 0 | I18: 0 | J18: 0 | K18: 0 | L18: 0 | M18: 0 | N18: 0 | O18: 0 | P18: 0 | Q18: 0 | R18: 0
A19: 17 | B19: 2.1 | C19: СД00.17.0.00.0 | D19: ЖК "Светлая Долина" ПК-17 | E19: =SUM(E20,E21,E22,E23,E24) -> 92,861 | G19: =SUM(G20,G21,G22,G23,G24) -> 0 | H19: 0 | I19: 0 | J19: 0 | K19: 0 | L19: 0 | M19: 0 | N19: 0 | O19: 0 | P19: 0 | Q19: 0 | R19: 0
A20: 18 | B20: 2.1.1 | C20: СД00.17.1.17.1 | D20: ЖК "Светлая Долина" ПК-17 ж/д 17-1 | E20: 8,525
A21: 20 | B21: 2.1.3 | C21: СД00.17.1.17.2 | D21: ЖК "Светлая Долина" ПК-17 ж/д 17-2 | E21: 25,270
A22: 21 | B22: 2.1.4 | C22: СД00.17.1.17.3 | D22: ЖК "Светлая Долина" ПК-17 ж/д 17-3 | E22: 8,525
A23: 23 | B23: 2.1.6 | C23: СД00.17.1.17.4 | D23: ЖК "Светлая Долина" ПК-17 ж/д 17-4 | E23: 25,270
A24: 24 | B24: 2.1.7 | C24: СД00.17.1.17.5 | D24: ЖК "Светлая Долина" ПК-17 ж/д 17-5 | E24: 25,270
A25: 25 | B25: 2.2 | C25: СД00.02.0.00.0 | D25: ЖК "Светлая Долина" ПК-2 | E25: =SUM(E26:E29) -> 68,362 | G25: =SUM(G26:G29) -> 0 | H25: 0 | I25: 0 | J25: 0 | K25: 0 | L25: =SUM(L26:L29) -> 0 | M25: =SUM(M26:M29) -> 0 | N25: =SUM(N26:N29) -> 0 | O25: =SUM(O26:O29) -> 0 | P25: 0 | Q25: 0 | R25: 0
A26: 26 | B26: 2.2.1 | C26: СД00.02.1.02.1 | D26: ЖК "Светлая Долина" ПК-2 ж/д 2-1 | E26: 30,509 | M26: ▪ | O26: ДДУ
A27: 27 | B27: 2.2.2 | C27: СД00.02.1.02.2 | D27: ЖК "Светлая Долина" ПК-2 ж/д 2-2 | E27: 10,350
A28: 28 | B28: 2.2.3 | C28: СД00.02.1.02.3 | D28: ЖК "Светлая Долина" ПК-2 ж/д 2-3 | E28: 17,140
A29: 29 | B29: 2.2.4 | C29: СД00.02.1.02.4 | D29: ЖК "Светлая Долина" ПК-2 ж/д 2-4 | E29: 10,363
A30: 30 | B30: 2.3 | C30: СД00.03.0.00.0 | D30: ЖК "Светлая Долина" ПК-3 | E30: =SUM(E31:E34) -> 65,472 | G30: =SUM(G31,G32,G33,G34) -> 0 | H30: 0 | I30: 0 | J30: 0 | K30: 0 | L30: 0 | M30: 0 | N30: 0 | O30: 0 | P30: 0 | Q30: 0 | R30: 0
A31: 31 | B31: 2.3.1 | C31: СД00.03.1.03.1 | D31: ЖК "Светлая Долина" ПК-3 ж/д 3-1 | E31: 30,509 | F31: =508.806 -> 508.806
A32: 32 | B32: 2.3.2 | C32: СД00.03.1.03.2 | D32: ЖК "Светлая Долина" ПК-3 ж/д 3-2 | E32: 7,460
A33: 34 | B33: 2.3.4 | C33: СД00.03.1.03.3 | D33: ЖК "Светлая Долина" ПК-3 ж/д 3-3 | E33: 17,140
A34: 36 | B34: 2.3.6 | C34: СД00.03.1.03.4 | D34: ЖК "Светлая Долина" ПК-3 ж/д 3-4 | E34: 10,363
A35: 38 | B35: 2.4 | C35: СД00.03.0.00.0 | D35: ЖК "Светлая Долина" ПК-4 | E35: =E36 -> 16,637
A36: 39 | B36: 2.4.1 | C36: СД00.04.3.01.0 | D36: ЖК "Светлая Долина" ПК-4 паркинг на 506 м/м | E36: 16,637
A37: 40 | B37: 2.5 | C37: СД00.03.0.00.0 | D37: ЖК "Светлая Долина" ПК-5 | E37: =E38 -> 16,357
A38: 41 | B38: 2.5.1 | C38: СД00.05.3.05.1 | D38: ЖК "Светлая долина" ПК-5 паркинг 5-1 на 506 м/м | E38: 16,357
A39: 43 | B39: 2.5.2 | C39: СД00.05.3.05.2 | D39: ЖК "Светлая долина" ПК-5 паркинг 5-2 на 506 м/м
A40: 49 | B40: 3 | C40: СН00.00.0.00.0 | D40: ЖР "Седьмое небо" | E40: =SUM(E41,E43,E45,E59,E91,E96,E105) -> 267,242
A41: 50 | B41: 3.1 | C41: СН6А.00.0.00.0 | D41: ЖР "Седьмое небо" Микрорайон 6А | E41: =E42 -> 11,145
A42: 51 | B42: 3.1.1 | C42: СН6А.00.1.01.0 | D42: Ж/д по ул.А.Кутуя ж/к «Казань ХХI век» | E42: 11,145
A43: 52 | B43: 3.2 | C43: СН7А.00.0.00.0 | D43: ЖР "Седьмое небо" Микрорайон 7А | E43: =E44 -> 28,122
A44: 53 | B44: 3.2.1 | C44: СН7А.00.1.00.0 | D44: Ж/д по ул.П.Лумумбы | E44: 28,121.541 | F44: =E44*0.0995 -> 2798.093
A45: 54 | B45: 3.3 | C45: СНМ2.00.0.00.0 | D45: ЖР "Седьмое Небо" ЖК "Мой Ритм" Микрорайон М-2 | E45: =E46+E49+E55+E52 -> 43,677
A46: 55 | B46: 3.3.1 | C46: СНМ2.03.0.00.0 | D46: ЖР "Седьмое Небо" ЖК "Мой Ритм" Микрорайон М-2 ПК-3 | E46: =E47 -> 20,906
A47: 56 | B47: 3.3.1.1 | C47: СНМ2.03.1.03.1 | D47: ЖР "Седьмое Небо" ЖК "Мой Ритм" Микрорайон М-2 ПК-3 ж/д 3-1 | E47: 20,906
A48: 57 | B48: 3.3.1.2 | C48: СНМ2.03.3.02.0 | D48: ЖР "Седьмое Небо" ЖК "Мой Ритм" Микрорайон М-2 ПК-3 паркинг на 300 м/м | E48: 12,877
A49: 59 | B49: 3.3.2 | C49: СНМ2.02.0.00.0 | D49: ЖР "Седьмое Небо" ЖК "Мой Ритм" Микрорайон М-2 ПК-2 | E49: =E50 -> 22,771
A50: 60 | B50: 3.3.2.1 | C50: СНМ2.02.1.02.1 | D50: ЖР "Седьмое Небо" ЖК "Мой Ритм" Микрорайон М-2 ПК-2 ж/д 2-1 | E50: 22,771
A51: 61 | B51: 3.3.2.2 | C51: СНМ2.02.3.02.0 | D51: ЖР "Седьмое Небо" ЖК "Мой Ритм" Микрорайон М-2 ПК-2 паркинг на 300 м/м | E51: 12,877
A52: 63 | B52: 3.3.3 | C52: СНМ2.05.0.00.0 | D52: ЖР "Седьмое Небо" ЖК "Мой Ритм" Микрорайон М-2 ПК-5
A53: 64 | B53: 3.3.3.1 | C53: СНМ2.05.2.00.0 | D53: ЖР "Седьмое Небо" ЖК "Мой Ритм" Микрорайон М-2 ПК-5 торгово-офисное здание | E53: 874.01 | F53: 107.250
A54: 65 | B54: 3.3.3.2 | C54: СНМ2.05.3.04.0 | D54: ЖР "Седьмое Небо" ЖК "Мой Ритм" Микрорайон М-2 ПК-5 паркинг на 300 м/м | E54: 12,863
A55: 66 | B55: 3.3.4 | C55: СНМ2.01.0.00.0 | D55: ЖР "Седьмое Небо" ЖК "Мой Ритм" Микрорайон М-2 ПК-1 | E55: =E56+E57 -> 0
A56: 67 | B56: 3.3.4.1 | C56: СНМ2.01.1.01.1 | D56: ЖР "Седьмое Небо" ЖК "Мой Ритм" Микрорайон М-2 ПК-1 ж/д 1-1
A57: 68 | B57: 3.3.4.2 | C57: СНМ2.01.1.01.2 | D57: ЖР "Седьмое Небо" ЖК "Мой Ритм" Микрорайон М-2 ПК-1 ж/д 1-2
A58: 69 | B58: 3.3.4.3 | C58: СНМ2.01.3.01.3 | D58: ЖР "Седьмое Небо" ЖК "Мой Ритм" Микрорайон М-2 ПК-1 паркинг на 300 м/м
A59: 70 | B59: 3.4 | C59: СНМ1.00.0.00.0 | D59: ЖР "Седьмое Небо" ЖК "Мой ритм" Микрорайон М-1 | E59: =SUM(E60,E63,E66,E69,E73,E77,E81,E85,E87,E89) -> 184,298
A60: 71 | B60: 3.4.1 | C60: СНМ1.01.0.00.0 | D60: ЖР "Седьмое Небо" ЖК "Мой ритм" Микрорайон М-1 ПК-1 | E60: =SUM(E61:E62) -> 84,163
A61: 72 | B61: 3.4.1.1 | C61: СНМ1.01.1.01.1 | D61: ЖР "Седьмое Небо" ЖК "Мой ритм" Микрорайон М-1 ПК-1 ж/д 1-1 | E61: 45,625.48 | F61: =E61*0.0995 -> 4539.735
A62: 73 | B62: 3.4.1.2 | C62: СНМ1.01.1.01.2 | D62: ЖР "Седьмое Небо" ЖК "Мой ритм" Микрорайон М-1 ПК-1 ж/д 1-2 | E62: 38,537.43 | F62: 3834.474
A63: 74 | B63: 3.4.2 | C63: СНМ1.05.1.00.0 | D63: ЖР "Седьмое Небо" ЖК "Мой ритм" Микрорайон М-1 ПК-5 | E63: =SUM(E64:E65) -> 44,471
A64: 75 | B64: 3.4.2.1 | C64: СНМ1.05.1.05.1 | D64: ЖР "Седьмое Небо" ЖК "Мой ритм" Микрорайон М-1 ПК-5 ж/д 5-1 | E64: 18,337 | F64: =1361.09+926.64/2 -> 1824.410
A65: 76 | B65: 3.4.2.2 | C65: СНМ1.05.1.05.2 | D65: ЖР "Седьмое Небо" ЖК "Мой ритм" Микрорайон М-1 ПК-5 ж/д 5-2 | E65: =17502.54+8630.85 -> 26,133 | F65: =2027.63+926.64/2 -> 2490.950
A66: 77 | B66: 3.4.3 | C66: СНМ1.10.1.00.0 | D66: ЖР "Седьмое Небо" ЖК "Мой ритм" Микрорайон М-1 ПК-10 | E66: =SUM(E67:E68) -> 55,665
A67: 78 | B67: 3.4.3.1 | C67: СНМ1.10.1.10.1 | D67: ЖР "Седьмое Небо" ЖК "Мой ритм" Микрорайон М-1 ПК-10 ж/д 10-1 | E67: 26,354 | F67: =E67*0.0995 -> 2622.193
A68: 79 | B68: 3.4.3.2 | C68: СНМ1.10.1.10.2 | D68: ЖР "Седьмое Небо" ЖК "Мой ритм" Микрорайон М-1 ПК-10 ж/д 10-2 | E68: =18739.6+10571.37 -> 29,311 | F68: =E68*0.0995 -> 2916.442
A69: 80 | B69: 3.4.4 | C69: СНМ1.03.0.00.0 | D69: ЖР "Седьмое Небо" ЖК "Мой ритм" Микрорайон М-1 ПК-3 | E69: =SUM(E70:E72) -> 0
A70: 81 | B70: 3.4.4.1 | C70: СНМ1.03.1.03.1 | D70: ЖР "Седьмое Небо" ЖК "Мой ритм" Микрорайон М-1 ПК-3 ж/д 3-1 | F70: Проектируем, Получаем РНС, Не принято решение о старте СМР
A71: 82 | B71: 3.4.4.2 | C71: СНМ1.03.1.03.2 | D71: ЖР "Седьмое Небо" ЖК "Мой ритм" Микрорайон М-1 ПК-3 ж/д 3-2
A72: 84 | B72: 3.4.4.3 | C72: СНМ1.03.1.03.3 | D72: ЖР "Седьмое Небо" ЖК "Мой ритм" Микрорайон М-1 ПК-3 ж/д 3-3
A73: 86 | B73: 3.4.5 | C73: СНМ1.11.0.00.0 | D73: ЖР "Седьмое Небо" ЖК "Мой ритм" Микрорайон М-1 ПК-11 | E73: =SUM(E74:E76) -> 0
A74: 87 | B74: 3.4.5.1 | C74: СНМ1.11.1.11.1 | D74: ЖР "Седьмое Небо" ЖК "Мой ритм" Микрорайон М-1 ПК-11 ж/д 11-1 | F74: Проектируем, Получаем РНС, Не принято решение о старте СМР
A75: 88 | B75: 3.4.5.2 | C75: СНМ1.11.1.11.2 | D75: ЖР "Седьмое Небо" ЖК "Мой ритм" Микрорайон М-1 ПК-11 ж/д 11-2
A76: 90 | B76: 3.4.5.3 | C76: СНМ1.11.1.11.3 | D76: ЖР "Седьмое Небо" ЖК "Мой ритм" Микрорайон М-1 ПК-11 ж/д 11-3
A77: 92 | B77: 3.4.6 | C77: СНМ1.12.0.00.0 | D77: ЖР "Седьмое Небо" ЖК "Мой ритм" Микрорайон М-1 ПК-12 | E77: =SUM(E78:E80) -> 0
A78: 93 | B78: 3.4.6.1 | C78: СНМ1.12.1.12.1 | D78: ЖР "Седьмое Небо" ЖК "Мой ритм" Микрорайон М-1 ПК-12 ж/д 12-1 | F78: Проектируем, Получаем РНС, Не принято решение о старте СМР
A79: 94 | B79: 3.4.6.2 | C79: СНМ1.12.1.12.2 | D79: ЖР "Седьмое Небо" ЖК "Мой ритм" Микрорайон М-1 ПК-12 ж/д 12-2
A80: 96 | B80: 3.4.6.3 | C80: СНМ1.12.1.12.3 | D80: ЖР "Седьмое Небо" ЖК "Мой ритм" Микрорайон М-1 ПК-12 ж/д 12-3
A81: 98 | B81: 3.4.7 | C81: СНМ1.13.0.00.0 | D81: ЖР "Седьмое Небо" ЖК "Мой ритм" Микрорайон М-1 ПК-13 | E81: =SUM(E82:E84) -> 0
A82: 99 | B82: 3.4.7.1 | C82: СНМ1.13.1.13.1 | D82: ЖР "Седьмое Небо" ЖК "Мой ритм" Микрорайон М-1 ПК-13 ж/д 13-1 | F82: Проектируем, Получаем РНС, Не принято решение о старте СМР
A83: 100 | B83: 3.4.7.2 | C83: СНМ1.13.1.13.2 | D83: ЖР "Седьмое Небо" ЖК "Мой ритм" Микрорайон М-1 ПК-13 ж/д 13-2
A84: 102 | B84: 3.4.7.3 | C84: СНМ1.13.1.13.3 | D84: ЖР "Седьмое Небо" ЖК "Мой ритм" Микрорайон М-1 ПК-13 ж/д 13-3
A85: 104 | B85: 3.4.8 | C85: СНМ1.04.0.00.0 | D85: ЖР "Седьмое Небо" ЖК "Мой ритм" Микрорайон М-1 ПК-4 | E85: =SUM(E86:E86) -> 0 | F85: Получаем РНС, Не принято решение о старте СМР
A86: 105 | B86: 3.4.8.1 | C86: СНМ1.04.1.04.1 | D86: ЖР "Седьмое Небо" ЖК "Мой ритм" Микрорайон М-1 ПК-4 ж/д 4-1
A87: 107 | B87: 3.4.9 | C87: СНМ1.09.0.00.0 | D87: ЖР "Седьмое Небо" ЖК "Мой ритм" Микрорайон М-1 ПК-9 | E87: =E88 -> 0 | F87: Получаем РНС, Не принято решение о старте СМР
A88: 108 | B88: 3.4.9.1 | C88: СНМ1.09.1.09.1 | D88: ЖР "Седьмое Небо" ЖК "Мой ритм" Микрорайон М-1 ПК-9 ж/д 9-1
A89: 110 | B89: 3.4.10 | C89: СНМ1.14.0.00.0 | D89: ЖР "Седьмое Небо" ЖК "Мой ритм" Микрорайон М-1 ПК-14 | E89: =SUM(E90:E90) -> 0 | F89: Получаем РНС, Не принято решение о старте СМР
A90: 111 | B90: 3.4.10.1 | C90: СНМ1.14.1.14.1 | D90: ЖР "Седьмое Небо" ЖК "Мой ритм" Микрорайон М-1 ПК-14 ж/д 14-1
A91: 113 | B91: 3.5 | C91: СНМ3.00.0.00.0 | D91: ЖР "Седьмое Небо" ЖК "Мой ритм" Микрорайон М-3 | E91: =SUM(E92:E93) -> 0
A92: 114 | B92: 3.5.1 | C92: СНМ3.01.0.00.0 | D92: ЖР "Седьмое Небо" ЖК "Мой ритм" Микрорайон М-3 ПК-1
A93: 115 | B93: 3.5.2 | C93: СНМ3.03.0.00.0 | D93: ЖР "Седьмое Небо" ЖК "Мой ритм" Микрорайон М-3 ПК-3
A94: 117 | B94: 3.5.3 | C94: СНМ3.01.2.01.5 | D94: ЖР "Седьмое Небо" ЖК "Мой ритм" Микрорайон М-3 бизнес-центр
A95: 118 | B95: 3.5.4 | C95: СНМ3.03.3.03.5 | D95: ЖР "Седьмое Небо" ЖК "Мой Ритм" Микрорайон М-3 ПК-3 паркинг на 300 м/м
A96: 119 | B96: 3.6 | C96: СНМ4.00.0.00.0 | D96: ЖР "Седьмое Небо" ЖК "Мой ритм" Микрорайон М-4 | E96: =SUM(E97:E99) -> 0
A97: 120 | B97: 3.6.1 | C97: СНМ4.06.0.00.0 | D97: ЖР "Седьмое Небо" ЖК "Мой ритм" Микрорайон М-4 ПК-6 | F97: СТОИМ
A98: 122 | B98: 3.6.2 | C98: СНМ4.07.0.00.0 | D98: ЖР "Седьмое Небо" ЖК "Мой ритм" Микрорайон М-4 ПК-7
A99: 123 | B99: 3.6.3 | C99: СНМ4.01.2.01.4 | D99: ЖР "Седьмое Небо" ЖК "Мой ритм" Микрорайон М-4 Технопарк
A100: 124 | B100: 3.6.4 | C100: СНМ4.01.3.01.1 | D100: ЖР "Седьмое Небо" ЖК "Мой Ритм" Микрорайон М-4 ПК-1 паркинг 1-1 на 1000 м/м
A101: 126 | B101: 3.6.5 | C101: СНМ4.01.3.01.2 | D101: ЖР "Седьмое Небо" ЖК "Мой Ритм" Микрорайон М-4 ПК-1 паркинг 1-2 на 1000 м/м
A102: 128 | B102: 3.6.6 | C102: СНМ4.01.3.01.3 | D102: ЖР "Седьмое Небо" ЖК "Мой Ритм" Микрорайон М-4 ПК-1 паркинг 1-3 на 1000 м/м
A103: 130 | B103: 3.7 | C103: СНМ4.00.0.00.0 | D103: ЖР "Седьмое Небо" Микрорайон М-5 | E103: =SUM(E104:E107) -> 16,867
A104: 131 | B104: 3.7.1 | C104: СНМ5.00.3.01.0 | D104: ЖР "Седьмое Небо" Микрорайон М-5 паркинг на 499 м/м | E104: 16,867
A105: 132 | B105: 3.8 | C105: СНМ8.00.0.00.0 | D105: ЖР "Седьмое Небо" Микрорайон М-8 | E105: =SUM(E106:E110) -> 0
A106: 133 | B106: 3.8.1 | C106: СНМ8.01.0.00.0 | D106: ЖР "Седьмое небо" Микрорайон М-8 ПК-1 | F106: Работа с концепцией
A107: 134 | B107: 3.8.2 | C107: СНМ8.02.0.00.0 | D107: ЖР "Седьмое небо" Микрорайон М-8 ПК-2
A108: 135 | B108: 3.8.3 | C108: СНМ8.03.0.00.0 | D108: ЖР "Седьмое небо" Микрорайон М-8 ПК-3
A109: 136 | B109: 3.8.4 | C109: СНМ8.04.0.00.0 | D109: ЖР "Седьмое небо" Микрорайон М-8 ПК-4
A110: 137 | B110: 3.8.5 | C110: СНМ8.05.0.00.0 | D110: ЖР "Седьмое небо" Микрорайон М-8 ПК-5
B111: 3.8.6 | C111: СНМ8.06.0.00.0 | D111: ЖР "Седьмое небо" Микрорайон М-8 ПК-6
B112: 3.8.7 | C112: СНМ8.07.0.00.0 | D112: ЖР "Седьмое небо" Микрорайон М-8 ПК-7
B113: 3.8.8 | C113: СНМ8.08.0.00.0 | D113: ЖР "Седьмое небо" Микрорайон М-8 ПК-8
B114: 3.8.9 | C114: СНМ8.09.0.00.0 | D114: ЖР "Седьмое небо" Микрорайон М-8 ПК-9
B115: 3.8.10 | C115: СНМ8.10.0.00.0 | D115: ЖР "Седьмое небо" Микрорайон М-8 ПК-10
B116: 3.8.11 | C116: СНМ8.11.0.00.0 | D116: ЖР "Седьмое небо" Микрорайон М-8 ПК-12
B117: 3.8.12 | C117: СНМ8.12.0.00.0 | D117: ЖР "Седьмое небо" Микрорайон М-8 ПК-11
B118: 3.8.13 | C118: СНМ8.13.0.00.0 | D118: ЖР "Седьмое небо" Микрорайон М-8 ПК-13
B119: 3.8.14 | C119: СНМ8.14.0.00.0 | D119: ЖР "Седьмое небо" Микрорайон М-8 ПК-14
B120: 3.8.15 | C120: СНМ8.15.0.00.0 | D120: ЖР "Седьмое небо" Микрорайон М-8 ПК-15
A121: 138 | B121: 4 | C121: НБ00.00.0.00.0 | D121: ЖК "Нобелевский" | E121: =SUM(E122) -> 13,635
A122: 142 | B122: 4.4 | C122: НБ00.00.3.01.0 | D122: ЖК "Нобелевский" паркинг на 362 м/м | E122: 13,635
A123: 143 | B123: 5 | C123: ИКРП.00.0.00.0 | D123: Исторический квартал по ул.Рахматуллина, Профсоюзная | E123: =SUM(E124:E128) -> 0
A124: 144 | B124: 5.1 | C124: ИКПР.00.1.05.0 | D124: Исторический квартал по ул.Профсоюзная ж/д 5/16
A125: 145 | B125: 5.2 | C125: ИКРХ.00.1.08.0 | D125: Исторический квартал по ул.Рахматуллина ж/д 8/11
A126: 146 | B126: 5.3 | C126: ИКРП.00.1.06.0 | D126: Исторический квартал по ул.Рахматуллина ж/д 6/9
A127: 147 | B127: 5.4 | C127: ИКРХ.00.1.04.0 | D127: Исторический квартал по ул.Рахматуллина ж/д 4/7
A128: 148 | B128: 5.5 | C128: ИКРХ.00.2.07.0 | D128: Исторический квартал по ул.Рахматуллина Административное здание с МУПг
A129: 149 | B129: 6 | C129: АВ00.00.0.00.0 | D129: ЖК на Айвазовского | E129: =SUM(E130:E131) -> 15,026
A130: 150 | B130: 6.1 | C130: АВ00.01.0.00.0 | D130: ЖК на Айвазовского 1 очередь | E130: 15,026 | F130: =(597+7502+3167.321)/2 -> 5633.161
A131: 151 | B131: 6.2 | C131: АВ00.02.0.00.0 | D131: ЖК на Айвазовского 2 очередь
A132: 152 | B132: 7 | D132: Точечные объекты | E132: =SUM(E133:E138) -> 12,755
A133: 153 | B133: 7.1 | C133: ИС00.00.1.00.0 | D133: Ж/д по ул.Г.Исхаки | E133: 6,927
A134: 154 | B134: 7.2 | C134: КЗ00.00.1.01.0 | D134: Ж/д КазаньМедТехника | F134: Проектируем, РНС получаем, Не принято решение о старте СМР
A135: 156 | B135: 7.3 | C135: ГЗ00.00.1.00.0 | D135: ЖК по ул.Газовая | F135: СТОИМ
A136: 157 | B136: 7.4 | C136: КР00.00.0.00.0 | D136: ЖК по ул.Красносельская
A137: 158 | B137: 7.5 | C137: СР00.00.0.00.0 | D137: Здание по ул.Сыртлановой 2 | E137: 2,584
A138: 159 | B138: 7.6 | C138: ШМ00.01.2.35.2 | D138: Административно-офисное здание по ул.Шмидта 35Б | E138: 3,244
A139: 258 | B139: 8 | C139: ККСМ.00.0.00.0 | D139: ЖК ККСМ
B140: 8.1 | C140: ККСМ.01.0.00.0 | D140: ЖК ККСМ 1 очередь
B141: 8.2 | C141: ККСМ.02.0.00.0 | D141: ЖК ККСМ 2 очередь
A142: 160 | B142: 9 | C142: УС00.00.0.00.0 | D142: с.Усады Лаишевского района | E142: =SUM(E143,E185,E190,E192,E194) -> 49,110
A143: 161 | B143: 9.1 | C143: УС52.00.0.00.0 | D143: ЖК "Великий сад" | E143: =SUM(E162,E166,E144,E148,E170,E174,E155,E151,E158,E179,E184) -> 0
A144: 162 | B144: 9.1.1 | C144: УС52.01.0.00.0 | D144: ЖК "Великий сад" ПК-1 | E144: =SUM(E145:E146) -> 0
A145: 163 | B145: 9.1.1.1 | C145: УС52.01.1.01.1 | D145: ЖК "Великий сад" ПК-1 ж/д 1-1 | F145: Проектируем после М-1 ПК-3-13
A146: 165 | B146: 9.1.1.2 | C146: УС52.01.1.01.2 | D146: ЖК "Великий сад" ПК-1 ж/д 1-2
A147: 167 | B147: 9.1.1.3 | C147: УС52.01.1.01.3 | D147: ЖК "Великий сад" ПК-1 ж/д 1-3
A148: 169 | B148: 9.1.2 | C148: УС52.02.0.00.0 | D148: ЖК "Великий сад" ПК-2 | E148: =SUM(E149:E150) -> 0
A149: 170 | B149: 9.1.2.1 | C149: УС52.02.1.02.1 | D149: ЖК "Великий сад" ПК-2 ж/д 2-1 | F149: Получаем РНС, Не принято решение о старте СМР
A150: 172 | B150: 9.1.2.2 | C150: УС52.02.1.02.2 | D150: ЖК "Великий сад" ПК-2 ж/д 2-2
A151: 174 | B151: 9.1.3 | C151: УС52.03.0.00.0 | D151: ЖК "Великий сад" ПК-3 | E151: =SUM(E152:E153) -> 0
A152: 175 | B152: 9.1.3.1 | C152: УС52.03.1.03.1 | D152: ЖК "Великий сад" ПК-3 ж/д 3-1 | F152: Получаем РНС, Не принято решение о старте СМР
A153: 177 | B153: 9.1.3.2 | C153: УС52.03.1.03.2 | D153: ЖК "Великий сад" ПК-3 ж/д 3-2
B154: 9.1.3.3 | C154: УС52.03.1.03.3 | D154: ЖК "Великий сад" ПК-3 ж/д 3-3
A155: 181 | B155: 9.1.4 | C155: УС52.04.0.00.0 | D155: ЖК "Великий сад" ПК-4 | E155: =SUM(E156:E157) -> 0
A156: 182 | B156: 9.1.4.1 | C156: УС52.04.1.04.1 | D156: ЖК "Великий сад" ПК-4 ж/д 4-1 | F156: Получаем РНС, Не принято решение о старте СМР
A157: 184 | B157: 9.1.4.2 | C157: УС52.04.1.04.2 | D157: ЖК "Великий сад" ПК-4 ж/д 4-2
A158: 186 | B158: 9.1.5 | C158: УС52.05.0.00.0 | D158: ЖК "Великий сад" ПК-5 | E158: =SUM(E159:E160) -> 0
A159: 187 | B159: 9.1.5.1 | C159: УС52.05.1.05.1 | D159: ЖК "Великий сад" ПК-5 ж/д 5-1 | F159: Получаем РНС, Не принято решение о старте СМР
A160: 189 | B160: 9.1.5.2 | C160: УС52.05.1.05.2 | D160: ЖК "Великий сад" ПК-5 ж/д 5-2
B161: 9.1.5.3 | C161: УС52.05.1.05.3 | D161: ЖК "Великий сад" ПК-5 ж/д 5-3
A162: 193 | B162: 9.1.6 | C162: УС52.08.0.00.0 | D162: ЖК "Великий сад" ПК-8 | E162: =SUM(E163:E164) -> 0
A163: 194 | B163: 9.1.6.1 | C163: УС52.08.1.08.1 | D163: ЖК "Великий сад" ПК-8 ж/д 8-1 | F163: Получаем РНС, Не принято решение о старте СМР
A164: 196 | B164: 9.1.6.2 | C164: УС52.08.1.08.2 | D164: ЖК "Великий сад" ПК-8 ж/д 8-2
B165: 9.1.6.3 | C165: УС52.08.1.08.3 | D165: ЖК "Великий сад" ПК-8 ж/д 8-3
A166: 198 | B166: 9.1.7 | C166: УС52.09.0.00.0 | D166: ЖК "Великий сад" ПК-9 | E166: =SUM(E167:E168) -> 0
A167: 199 | B167: 9.1.7.1 | C167: УС52.09.1.09.1 | D167: ЖК "Великий сад" ПК-9 ж/д 9-1 | F167: Получаем РНС, Не принято решение о старте СМР
A168: 201 | B168: 9.1.7.2 | C168: УС52.09.1.09.2 | D168: ЖК "Великий сад" ПК-9 ж/д 9-2
B169: 9.1.7.3 | C169: УС52.09.1.09.3 | D169: ЖК "Великий сад" ПК-9 ж/д 9-3
A170: 205 | B170: 9.1.8 | C170: УС52.10.0.00.0 | D170: ЖК "Великий сад" ПК-10 | E170: =SUM(E171:E172) -> 0
A171: 206 | B171: 9.1.8.1 | C171: УС52.10.1.10.1 | D171: ЖК "Великий сад" ПК-10 ж/д 10-1 | F171: Получаем РНС, Не принято решение о старте СМР
A172: 208 | B172: 9.1.8.2 | C172: УС52.10.1.10.2 | D172: ЖК "Великий сад" ПК-10 ж/д 10-2
B173: 9.1.8.3 | C173: УС52.10.1.10.3 | D173: ЖК "Великий сад" ПК-10 ж/д 10-3
A174: 213 | B174: 9.1.9 | C174: УС52.12.0.00.0 | D174: ЖК "Великий сад" ПК-12 | E174: =SUM(E175:E177) -> 0
A175: 214 | B175: 9.1.9.1 | C175: УС52.12.1.12.1 | D175: ЖК "Великий сад" ПК-12 ж/д 12-1 | F175: Получаем РНС, Не принято решение о старте СМР
A176: 216 | B176: 9.1.9.2 | C176: УС52.12.1.12.2 | D176: ЖК "Великий сад" ПК-12 ж/д 12-2
A177: 217 | B177: 9.1.9.3 | C177: УС52.12.1.12.3 | D177: ЖК "Великий сад" ПК-12 ж/д 12-3
B178: 9.1.9.4 | C178: УС52.12.1.12.4 | D178: ЖК "Великий сад" ПК-12 ж/д 12-4
A179: 219 | B179: 9.1.10 | C179: УС52.13.0.00.0 | D179: ЖК "Великий сад" ПК-13
A180: 220 | B180: 9.1.10.1 | C180: УС52.13.1.13.1 | D180: ЖК "Великий сад" ПК-13 ж/д 13-1 | F180: Проектируем после М-1 ПК-3-13
A181: 221 | B181: 9.1.10.2 | C181: УС52.13.1.13.2 | D181: ЖК "Великий сад" ПК-13 ж/д 13-2
A182: 218 | B182: 9.1.10.3 | C182: УС52.13.1.13.3 | D182: ЖК "Великий сад" ПК-13 ж/д 13-3
B183: 9.1.10.4 | C183: УС52.13.1.13.4 | D183: ЖК "Великий сад" ПК-13 ж/д 13-4
A184: 222 | B184: 9.1.11 | C184: УС52.14.0.00.0 | D184: ЖК "Великий сад" 4-я очередь
A185: 227 | B185: 9.2 | C185: УС03.00.0.00.0 | D185: ЖК "Дома у сада" | E185: =E186+E187+E188+E189 -> 49,110
A186: 228 | B186: 9.2.1 | C186: УС03.00.1.01.1 | D186: ЖК "Дома у сада" ж/д 1-1 | E186: 7,657
A187: 229 | B187: 9.2.2 | C187: УС03.00.1.01.2 | D187: ЖК "Дома у сада" ж/д 1-2 | E187: 7,657
A188: 230 | B188: 9.2.3 | C188: УС03.00.1.01.3 | D188: ЖК "Дома у сада" ж/д 1-3 | E188: 8,525
A189: 232 | B189: 9.2.5 | C189: УС03.00.1.01.4 | D189: ЖК "Дома у сада" ж/д 1-4 | E189: 25,270
A190: 233 | B190: 9.3 | C190: УС12.00.0.00.0 | D190: ЖК с.Усады 1,2 га | E190: =E191 -> 0
A191: 234 | B191: 9.3.1 | C191: УС12.00.2.00.0 | D191: ЖК с.Усады 1,2 га (офисное здание)
A192: 235 | B192: 9.4 | C192: УС08.00.0.00.0 | D192: ЖК с.Усады 0,8 га | E192: =E193 -> 0
A193: 236 | B193: 9.4.1 | C193: УС08.00.1.00.0 | D193: ЖК с.Усады 0,8 га (под жилье)
A194: 237 | B194: 9.5 | C194: УС27.00.0.00.0 | D194: ЖК с.Усады 2,7 га | E194: =E195 -> 0
A195: 238 | B195: 9.5.1 | C195: УС27.00.4.00.0 | D195: ЖК с.Усады 2,7 га (под коммуникации)
A196: 239 | B196: 10 | C196: НС00.00.0.00.0 | D196: ЖК "Новый свет" | E196: =SUM(E197,E208:E212) -> 145,732
A197: 240 | B197: 10.1 | C197: НСМ1.00.0.00.0 | D197: ЖК "Новый свет" Микрорайон №1 | E197: =SUM(E198:E207) -> 145,732
A198: 241 | B198: 10.1.1 | C198: НСМ1.01.0.00.0 | D198: ЖК "Новый свет" Микрорайон №1 УБ-1 | E198: 20,164 | F198: Получаем РНС, НЕ СТРОИМ
A199: 242 | B199: 10.1.2 | C199: НСМ1.02.0.00.0 | D199: ЖК "Новый свет" Микрорайон №1 УБ-2 | E199: 15,905
A200: 243 | B200: 10.1.3 | C200: НСМ1.03.0.00.0 | D200: ЖК "Новый свет" Микрорайон №1 УБ-3 | E200: 10,043
... 121 more rows
